[Event "Western Asian Girls Chess-ch 2023"]
[Site "Colombo"]
[Date "2023.12.01"]
[Round "4.6"]
[White "Sanudula, K M Dahamdi"]
[Black "Newansa, M Esandi"]
[Result "1-0"]
[ECO "D00"]
[WhiteElo "1709"]
[BlackElo "1531"]
[Annotator "NA RC"]
[PlyCount "156"]
[EventDate "2023.11.30"]
[EventCountry "SRI"]
[SourceTitle "playchess.com"]
[Source "ChessBase"]
[SourceQuality "1"]
[TimeControl "5400+30"]

1. d4 {[%emt 0:00:10]} d5 {[%emt 0:12:36]} 2. e3 {[%emt 0:00:14]} Nf6 {[%emt 1:18:54]} 3. Bd3 Nc6 {[%emt 0:00:00]} 4. f4 {[%emt 0:00:13]} Nb4 {[%emt 0:00:00]} 5. Bb5+ {[%emt 0:01:05]} c6 {[%emt 0:00:00]} 6. Ba4 {[%emt 0:00:09]} b5 {[%emt 0:00:00]} 7. Bb3 {[%emt 0:00:07]} c5 {[%emt 0:00:00]} 8. c3 {[%emt 0:00:20]} Nc6 {[%emt 0:00:00]} 9. Bc2 {[%emt 1:32:42]} c4 {[%emt 0:00:00]} 10. Nd2 {[%emt 0:00:00]} Bb7 {[%emt 0:00:00]} 11. Ngf3 {[%emt 0:00:00]} e6 {[%emt 0:00:00]} 12. O-O {[%emt 0:00:00]} Bd6 {[%emt 0:00:00]} 13. Ne5 {[%emt 0:00:00]} Qc7 {[%emt 0:05:30]} 14. Qe2 {[%emt 0:00:00]} Ne7 {[%emt 0:00:00]} 15. Qf3 {[%emt 0:00:00]} a5 {[%emt 0:00:00]} 16. g4 {[%emt 0:00:00]} Ng6 {[%emt 0:00:00]} 17. h3 {[%emt 0:00:00]} Qe7 {[%emt 0:00:00]} 18. e4 {[%emt 0:00:00]} Nh4 {[%emt 0:02:30]} 19. Qe2 {[%emt 0:00:00]} Bxe5 {[%emt 0:00:00]} 20. fxe5 {[%emt 0:00:00]} Nd7 {[%emt 0:01:00]} 21. exd5 {[%emt 0:00:00]} exd5 {[%emt 0:00:00]} 22. Nf3 {[%emt 0:00:00]} Nxf3+ {[%emt 0:00:00]} 23. Qxf3 {[%emt 0:00:00]} Nf8 {[%emt 0:00:00]} 24. Bd2 {[%emt 0:00:00]} Ne6 {[%emt 0:02:00]} 25. Qf2 {[%emt 0:08:00]} a4 {[%emt 0:00:00]} 26. Qf5 {[%emt 0:00:00]} Bc8 {[%emt 0:00:00]} 27. Qf3 {[%emt 0:00:00]} Bb7 {[%emt 0:00:00]} 28. Rf2 {[%emt 0:00:00]} Ra7 {[%emt 0:00:00]} 29. Rb1 {[%emt 0:00:00]} Bc6 {[%emt 0:00:00]} 30. b3 {[%emt 0:00:00]} cxb3 {[%emt 0:00:00]} 31. axb3 {[%emt 0:00:00]} Rb7 {[%emt 0:00:00]} 32. bxa4 {[%emt 0:00:00]} bxa4 {[%emt 0:00:00]} 33. Ra1 {[%emt 0:00:00]} Ra7 {[%emt 0:00:00]} 34. Bc1 {[%emt 0:00:00]} Nd8 {[%emt 0:00:00]} 35. Ba3 {[%emt 0:00:00]} Qh4 {[%emt 0:00:00]} 36. Bc5 {[%emt 0:00:00]} Ra8 {[%emt 0:00:00]} 37. Bb6 {[%emt 0:00:00]} O-O {[%emt 0:00:00]} 38. Bc5 {[%emt 0:00:00]} Re8 {[%emt 0:00:18]} 39. Kg2 {[%emt 0:00:00]} Kh8 {[%emt 0:01:13]} 40. Qg3 {[%emt 0:00:00]} Qxg3+ {[%emt 0:00:37]} 41. Kxg3 {[%emt 0:00:00]} Ne6 {[%emt 0:00:15]} 42. Bd6 {[%emt 0:00:00]} Kg8 {[%emt 0:00:39]} 43. h4 {[%emt 0:00:00]} Ra7 {[%emt 0:00:59]} 44. Bd1 {[%emt 0:00:00]} Rc8 {[%emt 0:00:44]} 45. Rfa2 {[%emt 0:00:00]} Bb5 {[%emt 0:00:44]} 46. Bb4 {[%emt 0:00:00]} Rca8 {[%emt 0:00:30]} 47. Kf3 {[%emt 0:00:00]} Nf8 {[%emt 0:00:53]} 48. Bxf8 {[%emt 0:00:00]} Kxf8 {[%emt 0:00:08]} 49. Rb2 {[%emt 0:00:00]} Bc4 {[%emt 0:01:16]} 50. Ra3 {[%emt 0:00:00]} Rc7 {[%emt 0:00:55]} 51. Rxa4 {[%emt 0:00:00]} Rac8 {[%emt 0:00:36]} 52. Ra3 {[%emt 0:00:00]} Bd3 {[%emt 0:00:48]} 53. Rbb3 {[%emt 0:00:00]} Bc4 {[%emt 0:00:08]} 54. Rb1 {[%emt 0:00:00]} Bd3 {[%emt 0:00:09]} 55. Rc1 {[%emt 0:00:00]} Rc4 {[%emt 0:01:48]} 56. Ke3 {[%emt 0:00:00]} Be4 {[%emt 0:00:53]} 57. Be2 {[%emt 0:00:00]} R4c7 {[%emt 0:00:32]} 58. Bd3 {[%emt 0:00:00]} Bxd3 {[%emt 0:00:25]} 59. Kxd3 {[%emt 0:00:00]} Ke7 {[%emt 0:03:00]} 60. Ra5 {[%emt 0:00:00]} Ke6 {[%emt 0:00:30]} 61. Ra6+ {[%emt 0:00:00]} Rc6 {[%emt 0:00:00]} 62. Rca1 {[%emt 0:00:00]} g6 {[%emt 0:00:00]} 63. R1a5 {[%emt 0:00:00]} R8c7 {[%emt 0:00:02]} 64. Kd2 {[%emt 0:00:00]} Rc8 {[%emt 0:00:15]} 65. c4 {[%emt 0:00:00]} Rxa6 {[%emt 0:01:03]} 66. Rxa6+ {[%emt 0:00:00]} Ke7 {[%emt 0:00:07]} 67. cxd5 {[%emt 0:00:00]} Rc4 {[%emt 0:00:13]} 68. Kd3 {[%emt 0:00:00]} Rb4 {[%emt 0:00:04]} 69. Ra7+ {[%emt 0:00:00]} Ke8 {[%emt 0:00:08]} 70. e6 {[%emt 0:00:00]} fxe6 {[%emt 0:00:49]} 71. dxe6 {[%emt 0:00:00]} h5 {[%emt 0:00:11]} 72. g5 {[%emt 0:00:00]} Rb3+ {[%emt 0:00:12]} 73. Ke4 {[%emt 0:00:00]} Rh3 {[%emt 0:00:08]} 74. d5 {[%emt 0:00:00]} Rh1 {[%emt 0:00:46]} 75. d6 {[%emt 0:00:00]} Re1+ {[%emt 0:00:07]} 76. Kd5 {[%emt 0:00:00]} Rd1+ {[%emt 0:00:08]} 77. Ke5 {[%emt 0:00:00]} Kf8 {[%emt 0:00:43]} 78. Kf6 {[%emt 0:00:00]} Rxd6 {[%emt 0:00:46]} 1-0

[Event "Western Asian Girls Chess-ch 2023"]
[Site "Colombo"]
[Date "2023.12.01"]
[Round "4.7"]
[White "Sasvatha A"]
[Black "Bayrambayeva, Ogulsuray"]
[Result "1/2-1/2"]
[ECO "D02"]
[WhiteElo "1568"]
[BlackElo "1909"]
[Annotator "RC"]
[PlyCount "70"]
[EventDate "2023.11.30"]
[EventCountry "SRI"]
[SourceTitle "playchess.com"]
[Source "ChessBase"]
[SourceQuality "1"]
[TimeControl "5400+30"]

1. d4 {[%emt 0:00:02]} d5 {[%emt 0:00:24]} 2. Nf3 {[%emt 1:31:28]} Nf6 3. Bf4 e6 4. e3 {[%emt 0:00:00]} c5 {[%emt 1:32:06]} 5. c3 {[%emt 0:00:00]} Bd6 {[%emt 0:00:00]} 6. Bxd6 {[%emt 0:00:00]} Qxd6 {[%emt 0:00:00]} 7. Ne5 {[%emt 0:00:00]} Nc6 {[%emt 0:01:30]} 8. Bb5 {[%emt 0:00:00]} O-O {[%emt 0:00:00]} 9. f4 {[%emt 0:00:00]} Ne7 {[%emt 0:00:00]} 10. Bd3 {[%emt 0:00:00]} c4 {[%emt 0:01:30]} 11. Bc2 Nf5 {[%emt 0:00:00]} 12. Qc1 {[%emt 0:00:00]} Qe7 {[%emt 0:00:00]} 13. O-O {[%emt 0:00:00]} Nd6 {[%emt 0:00:00]} 14. Nd2 {[%emt 0:00:00]} b5 {[%emt 0:00:00]} 15. Rf3 {[%emt 0:00:00]} Nfe4 {[%emt 0:02:30]} 16. Bxe4 {[%emt 0:00:00]} dxe4 {[%emt 0:00:00]} 17. Rf1 {[%emt 0:00:00]} Bb7 {[%emt 0:00:00]} 18. Ng4 {[%emt 0:00:00]} Qh4 {[%emt 0:00:00]} 19. Nf2 {[%emt 0:00:00]} f5 {[%emt 0:00:00]} 20. a3 {[%emt 0:00:00]} a6 {[%emt 0:00:00]} 21. Qe1 {[%emt 0:00:00]} Ne8 {[%emt 0:00:00]} 22. Kh1 {[%emt 0:00:00]} Kh8 {[%emt 0:00:00]} 23. Rg1 {[%emt 0:00:00]} Nf6 {[%emt 0:00:00]} 24. Qe2 {[%emt 0:00:00]} Nd5 {[%emt 0:04:30]} 25. Nh3 {[%emt 0:00:00]} Rf6 {[%emt 0:00:00]} 26. Ng5 {[%emt 0:00:00]} Qh6 {[%emt 0:00:00]} 27. Rae1 {[%emt 0:00:00]} Bc6 {[%emt 0:00:00]} 28. g4 {[%emt 0:00:00]} Rff8 {[%emt 0:00:00]} 29. Rg3 {[%emt 0:00:00]} Qf6 {[%emt 0:00:00]} 30. Nh3 {[%emt 0:00:00]} Be8 {[%emt 0:00:00]} 31. Reg1 {[%emt 0:00:00]} Ra7 {[%emt 0:00:00]} 32. Ng5 {[%emt 0:00:00]} Bg6 {[%emt 0:00:00]} 33. Nh3 {[%emt 0:00:00]} Qd8 {[%emt 0:00:39]} 34. Nf2 {[%emt 0:00:00]} Rb7 {[%emt 0:02:14]} 35. Nh3 {[%emt 0:00:00]} Ra7 {[%emt 0:00:22]} 1/2-1/2

[Event "Western Asian Girls Chess-ch 2023"]
[Site "Colombo"]
[Date "2023.12.01"]
[Round "4.8"]
[White "Piyumanthi, M Sayumi Vimansa"]
[Black "Pallie, Ehsha Mishela"]
[Result "0-1"]
[ECO "E15"]
[WhiteElo "1328"]
[BlackElo "1569"]
[Annotator "NA RC"]
[PlyCount "110"]
[EventDate "2023.11.30"]
[EventCountry "SRI"]
[SourceTitle "playchess.com"]
[Source "ChessBase"]
[SourceQuality "1"]
[TimeControl "5400+30"]

1. d4 {[%emt 0:00:28]} Nf6 {[%emt 0:00:07]} 2. c4 {[%emt 0:00:04]} e6 {[%emt 0:00:04]} 3. Nf3 {[%emt 0:00:08]} b6 {[%emt 0:00:12]} 4. g3 {[%emt 0:01:16]} Ba6 {[%emt 0:02:41]} 5. Qc2 {[%emt 0:02:09]} c5 {[%emt 0:04:43]} 6. Bg2 {[%emt 0:05:20]} Nc6 {[%emt 0:07:30]} 7. dxc5 {[%emt 0:05:13]} Bxc5 {[%emt 0:01:04]} 8. a3 {[%emt 0:04:21]} Bb7 {[%emt 0:05:44]} 9. O-O {[%emt 0:01:47]} O-O {[%emt 0:06:08]} 10. b4 {[%emt 0:07:07]} Be7 {[%emt 0:02:49]} 11. Bb2 {[%emt 0:01:27]} Rc8 {[%emt 0:02:18]} 12. Qb3 {[%emt 0:04:50]} a5 {[%emt 0:19:37]} 13. b5 {[%emt 0:04:45]} Nb8 {[%emt 0:00:40]} 14. Nc3 {[%emt 0:01:57]} Qc7 {[%emt 0:07:03]} 15. Nd2 {[%emt 0:08:36]} Bxg2 {[%emt 0:05:18]} 16. Kxg2 {[%emt 0:00:14]} d6 {[%emt 0:00:24]} 17. Na4 {[%emt 0:09:18]} Nbd7 {[%emt 0:00:59]} 18. Rac1 {[%emt 0:01:25]} Rfd8 {[%emt 0:06:17]} 19. Rfd1 {[%emt 0:03:53]} Nc5 {[%emt 0:08:50]} 20. Nxc5 {[%emt 0:01:29]} Qxc5 {[%emt 0:04:53]} 21. Nf3 {[%emt 0:01:29]} e5 {[%emt 0:03:44]} 22. a4 {[%emt 0:09:39]} Qc7 {[%emt 0:03:12]} 23. Nh4 {[%emt 0:05:09]} Ne4 {[%emt 0:04:51]} 24. Nf5 {[%emt 0:00:54]} Bg5 {[%emt 0:00:55]} 25. Ne3 {[%emt 0:13:34]} Nc5 {[%emt 0:01:30]} 26. Qc2 {[%emt 0:00:44]} Qb7+ {[%emt 0:01:16]} 27. Kg1 {[%emt 0:00:31]} Bxe3 {[%emt 0:00:34]} 28. fxe3 {[%emt 0:00:01]} Qe7 {[%emt 0:00:32]} 29. e4 {[%emt 0:00:47]} Qg5 {[%emt 0:00:27]} 30. Kf2 {[%emt 0:02:43]} Qg6 {[%emt 0:00:27]} 31. Ke3 {[%emt 0:00:47]} Qh6+ {[%emt 0:00:21]} 32. Kf3 {[%emt 0:00:12]} Qh5+ {[%emt 0:00:21]} 33. Kg2 {[%emt 0:01:24]} Nxa4 {[%emt 0:00:56]} 34. Ba3 {[%emt 0:00:56]} Nc5 {[%emt 0:00:13]} 35. Bxc5 {[%emt 0:00:08]} dxc5 {[%emt 0:00:44]} 36. Rxd8+ {[%emt 0:01:27]} Rxd8 {[%emt 0:00:01]} 37. Rd1 {[%emt 0:00:03]} Rd4 {[%emt 0:01:02]} 38. Rd2 {[%emt 0:01:11]} Qg5 {[%emt 0:00:16]} 39. Rd1 {[%emt 0:00:48]} Qe3 {[%emt 0:00:36]} 40. Kf1 {[%emt 0:00:23]} h6 {[%emt 0:00:36]} 41. Kg2 {[%emt 0:00:58]} Rxd1 {[%emt 0:00:09]} 42. Qxd1 {[%emt 0:00:02]} Qxe4+ {[%emt 0:00:05]} 43. Kh3 {[%emt 0:00:17]} Qd4 {[%emt 0:00:39]} 44. Qh1 {[%emt 0:01:18]} e4 {[%emt 0:01:05]} 45. Qc1 {[%emt 0:00:09]} a4 {[%emt 0:00:33]} 46. Qf4 {[%emt 0:00:11]} a3 {[%emt 0:00:28]} 47. Qb8+ {[%emt 0:00:33]} Kh7 {[%emt 0:00:03]} 48. Qa7 {[%emt 0:00:09]} Qxc4 {[%emt 0:00:32]} 49. Qxb6 {[%emt 0:00:41]} Qe6+ {[%emt 0:00:56]} 50. Qxe6 {[%emt 0:00:06]} fxe6 {[%emt 0:00:02]} 51. b6 {[%emt 0:00:09]} a2 {[%emt 0:00:02]} 52. b7 {[%emt 0:00:10]} a1=Q {[%emt 0:00:04]} 53. b8=Q {[%emt 0:00:09]} Qf1+ {[%emt 0:00:03]} 54. Kg4 {[%emt 0:00:38]} Qf5+ {[%emt 0:00:05]} 55. Kh4 {[%emt 0:00:24]} g5+ {[%emt 0:00:04]} 0-1

[Event "Western Asian Girls Chess-ch 2023"]
[Site "Colombo"]
[Date "2023.12.02"]
[Round "5.1"]
[White "Gunawardhana, Devindya Oshini"]
[Black "Sultanbek, Zeinep"]
[Result "0-1"]
[ECO "B92"]
[WhiteElo "1741"]
[BlackElo "2008"]
[Annotator "NA RC"]
[PlyCount "140"]
[EventDate "2023.11.30"]
[EventCountry "SRI"]
[SourceTitle "playchess.com"]
[Source "ChessBase"]
[SourceQuality "1"]
[TimeControl "5400+30"]

1. e4 {[%emt 0:00:06]} c5 {[%emt 0:00:03]} 2. Nf3 {[%emt 0:00:07]} d6 {[%emt 0:00:03]} 3. d4 {[%emt 0:00:07]} cxd4 {[%emt 0:00:04]} 4. Nxd4 {[%emt 0:00:05]} Nf6 {[%emt 0:00:04]} 5. Nc3 {[%emt 0:00:08]} a6 {[%emt 0:00:03]} 6. Be2 {[%emt 0:00:17]} e5 {[%emt 0:00:06]} 7. Nf3 {[%emt 0:00:07]} Be7 {[%emt 0:02:59]} 8. Bg5 {[%emt 0:00:22]} Be6 {[%emt 0:02:40]} 9. Bxf6 {[%emt 0:00:31]} Bxf6 {[%emt 0:00:02]} 10. O-O {[%emt 0:00:11]} Be7 {[%emt 0:11:51]} 11. Nd5 {[%emt 0:00:34]} Nd7 {[%emt 0:00:17]} 12. Bc4 {[%emt 0:01:32]} Rc8 {[%emt 0:11:46]} 13. Qe2 {[%emt 0:03:40]} O-O {[%emt 0:02:31]} 14. Rfd1 {[%emt 0:02:22]} Kh8 {[%emt 0:08:27]} 15. Ne3 {[%emt 0:12:06]} Qc7 {[%emt 0:00:29]} 16. Bb3 {[%emt 0:05:48]} Qc6 {[%emt 0:04:33]} 17. Bd5 {[%emt 0:07:43]} Qb6 {[%emt 0:03:16]} 18. b3 {[%emt 0:03:44]} Nc5 {[%emt 0:02:53]} 19. Nd2 {[%emt 0:07:09]} Qc7 {[%emt 0:04:29]} 20. a4 {[%emt 0:03:42]} Bd7 {[%emt 0:03:16]} 21. Bc4 {[%emt 0:07:22]} Bc6 {[%emt 0:02:52]} 22. Nf5 {[%emt 0:09:28]} Bf6 {[%emt 0:00:10]} 23. Ng3 {[%emt 0:11:05]} g6 {[%emt 0:01:09]} 24. Ndf1 {[%emt 0:01:51]} Qe7 {[%emt 0:03:13]} 25. c3 {[%emt 0:03:01]} Bg5 {[%emt 0:05:23]} 26. Qc2 {[%emt 0:04:34]} h5 {[%emt 0:02:55]} 27. Bd5 {[%emt 0:07:06]} h4 {[%emt 0:02:43]} 28. Ne2 {[%emt 0:00:10]} Kg7 {[%emt 0:00:14]} 29. Ne3 {[%emt 0:04:41]} Bxe3 {[%emt 0:00:34]} 30. fxe3 {[%emt 0:00:03]} Qg5 {[%emt 0:00:08]} 31. Rd3 {[%emt 0:04:03]} Bxd5 {[%emt 0:00:41]} 32. exd5 {[%emt 0:00:11]} e4 {[%emt 0:01:45]} 33. Rdd1 {[%emt 0:00:51]} Qxe3+ {[%emt 0:00:13]} 34. Kh1 {[%emt 0:00:03]} Nd3 {[%emt 0:25:38]} 35. Rf1 {[%emt 0:00:02]} Nf2+ {[%emt 0:00:00]} 36. Rxf2 {[%emt 0:00:03]} Qxf2 {[%emt 0:00:00]} 37. Qxe4 {[%emt 0:00:19]} Rfe8 {[%emt 0:00:00]} 38. Qd4+ {[%emt 0:01:51]} Qxd4 {[%emt 0:00:00]} 39. Nxd4 {[%emt 0:00:03]} Rxc3 {[%emt 0:00:00]} 40. Rd1 {[%emt 0:00:21]} Ree3 {[%emt 0:00:00]} 41. Rf1 {[%emt 0:00:50]} Rcd3 {[%emt 0:00:00]} 42. Nf3 {[%emt 0:00:30]} Rxd5 {[%emt 0:00:00]} 43. Nxh4 {[%emt 0:00:13]} Red3 {[%emt 0:00:00]} 44. Nf3 {[%emt 0:01:20]} Rd1 {[%emt 0:00:00]} 45. Kg1 {[%emt 0:00:01]} Rxf1+ {[%emt 0:00:00]} 46. Kxf1 {[%emt 0:00:05]} Rd3 {[%emt 0:00:00]} 47. b4 {[%emt 0:00:08]} Rb3 {[%emt 0:00:00]} 48. Ke2 {[%emt 0:00:15]} Rxb4 {[%emt 0:00:00]} 49. Nd2 {[%emt 0:00:13]} Rxa4 {[%emt 0:00:00]} 50. Kd3 {[%emt 0:00:07]} Ra2 {[%emt 0:00:00]} 51. h3 {[%emt 0:00:06]} b5 {[%emt 0:00:00]} 52. g3 {[%emt 0:00:08]} Ra3+ {[%emt 0:00:00]} 53. Kc2 {[%emt 0:00:04]} Rxg3 {[%emt 0:00:00]} 54. Ne4 {[%emt 0:00:03]} Rxh3 {[%emt 0:00:00]} 55. Nxd6 {[%emt 0:00:02]} Kf6 {[%emt 0:00:00]} 56. Ne4+ {[%emt 0:00:05]} Ke5 {[%emt 0:00:00]} 57. Ng5 {[%emt 0:00:07]} Rh2+ {[%emt 0:00:00]} 58. Kb1 {[%emt 0:00:01]} Rf2 {[%emt 0:00:00]} 59. Nh3 {[%emt 0:00:05]} Rf1+ {[%emt 0:00:00]} 60. Kb2 {[%emt 0:00:02]} Kf5 {[%emt 0:00:00]} 61. Ka2 {[%emt 0:00:05]} Kg4 {[%emt 0:00:00]} 62. Kb2 {[%emt 0:00:03]} Kxh3 {[%emt 0:00:00]} 63. Ka2 {[%emt 0:00:02]} Rf3 {[%emt 0:00:00]} 64. Kb2 {[%emt 0:00:03]} g5 {[%emt 0:00:00]} 65. Ka2 {[%emt 0:00:02]} g4 {[%emt 0:00:00]} 66. Kb2 {[%emt 0:00:03]} g3 {[%emt 0:00:00]} 67. Ka2 {[%emt 0:00:03]} g2 {[%emt 0:00:00]} 68. Kb2 {[%emt 0:00:04]} g1=Q {[%emt 0:00:00]} 69. Ka2 {[%emt 0:00:03]} Qg2+ {[%emt 0:00:00]} 70. Kb1 {[%emt 0:00:05]} Rf1# {[%emt 0:00:00]} 0-1

[Event "Western Asian Girls Chess-ch 2023"]
[Site "Colombo"]
[Date "2023.12.02"]
[Round "5.2"]
[White "Gamage, Desandhi Dhihansa"]
[Black "Rindhiya V"]
[Result "0-1"]
[ECO "C54"]
[WhiteElo "1608"]
[BlackElo "1876"]
[Annotator "NA RC"]
[PlyCount "96"]
[EventDate "2023.11.30"]
[EventCountry "SRI"]
[SourceTitle "playchess.com"]
[Source "ChessBase"]
[SourceQuality "1"]
[TimeControl "5400+30"]

1. e4 {[%emt 0:01:52]} e5 {[%emt 0:02:18]} 2. Nf3 {[%emt 0:00:09]} Nc6 {[%emt 0:00:05]} 3. Bc4 {[%emt 0:00:05]} Bc5 {[%emt 0:00:10]} 4. c3 {[%emt 0:00:05]} Nf6 {[%emt 0:00:03]} 5. d3 {[%emt 0:00:06]} d6 {[%emt 0:00:07]} 6. Bb3 {[%emt 0:00:04]} a6 {[%emt 0:00:05]} 7. h3 {[%emt 0:00:04]} Ba7 {[%emt 0:00:04]} 8. O-O {[%emt 0:00:06]} h6 {[%emt 0:00:05]} 9. Re1 {[%emt 0:00:08]} O-O {[%emt 0:00:19]} 10. Nbd2 {[%emt 0:00:08]} Nh5 {[%emt 0:00:49]} 11. Nf1 {[%emt 0:03:53]} Qf6 {[%emt 0:00:10]} 12. Be3 {[%emt 0:06:56]} Nf4 {[%emt 0:00:33]} 13. Bxf4 {[%emt 0:02:57]} Qxf4 {[%emt 0:00:38]} 14. Ne3 {[%emt 0:03:34]} Ne7 {[%emt 0:09:15]} 15. d4 {[%emt 0:06:56]} Qf6 {[%emt 0:13:44]} 16. Nh2 {[%emt 0:13:27]} exd4 {[%emt 0:07:21]} 17. Neg4 {[%emt 0:10:04]} Qg6 {[%emt 0:03:27]} 18. e5 {[%emt 0:02:14]} Nc6 {[%emt 0:20:01]} 19. Qf3 {[%emt 0:18:08]} h5 {[%emt 0:05:18]} 20. Nf6+ {[%emt 0:04:11]} gxf6 {[%emt 0:00:13]} 21. exf6 {[%emt 0:00:03]} Ne5 {[%emt 0:00:42]} 22. Rxe5 {[%emt 0:04:31]} dxe5 {[%emt 0:00:06]} 23. Re1 {[%emt 0:00:08]} Re8 {[%emt 0:06:45]} 24. Re4 {[%emt 0:01:25]} Bf5 {[%emt 0:01:34]} 25. Rh4 {[%emt 0:00:43]} e4 {[%emt 0:01:08]} 26. Qxh5 {[%emt 0:10:00]} Qxh5 {[%emt 0:01:29]} 27. Rxh5 {[%emt 0:00:01]} Be6 {[%emt 0:18:46]} 28. Rg5+ {[%emt 0:01:11]} Kh7 {[%emt 0:00:28]} 29. Rg7+ {[%emt 0:00:19]} Kh8 {[%emt 0:00:29]} 30. Rg5 {[%emt 0:04:09]} Bxb3 {[%emt 0:01:26]} 31. Ng4 {[%emt 0:02:55]} Bd1 {[%emt 0:03:22]} 32. Rh5+ {[%emt 0:03:36]} Kg8 {[%emt 0:00:04]} 33. Nh6+ {[%emt 0:00:45]} Kh7 {[%emt 0:00:25]} 34. g4 {[%emt 0:01:29]} Kg6 {[%emt 0:00:19]} 35. Nf5 {[%emt 0:00:39]} Rh8 {[%emt 0:02:33]} 36. Nh4+ {[%emt 0:00:49]} Kxf6 {[%emt 0:00:06]} 37. Rf5+ {[%emt 0:00:10]} Ke7 {[%emt 0:00:24]} 38. Ng2 {[%emt 0:00:27]} Bf3 {[%emt 0:00:13]} 39. Nf4 {[%emt 0:00:10]} d3 {[%emt 0:00:13]} 40. Re5+ {[%emt 0:00:27]} Kd6 {[%emt 0:00:10]} 41. Rd5+ {[%emt 0:00:07]} Kc6 {[%emt 0:00:04]} 42. Nxd3 {[%emt 0:00:51]} Kxd5 {[%emt 0:00:15]} 43. Nf4+ {[%emt 0:00:04]} Ke5 {[%emt 0:00:05]} 44. Nh5 {[%emt 0:00:07]} Rxh5 {[%emt 0:00:04]} 45. gxh5 {[%emt 0:00:03]} Rd8 {[%emt 0:00:07]} 46. Kh2 {[%emt 0:00:04]} Bxf2 {[%emt 0:00:04]} 47. h6 {[%emt 0:00:04]} Rd1 {[%emt 0:00:02]} 48. h7 {[%emt 0:00:06]} Rh1# {[%emt 0:00:04]} 0-1

[Event "Western Asian Girls Chess-ch 2023"]
[Site "Colombo"]
[Date "2023.12.02"]
[Round "5.3"]
[White "Bhagyashree Patil"]
[Black "Sachi Jain"]
[Result "1/2-1/2"]
[ECO "C54"]
[WhiteElo "1830"]
[BlackElo "1743"]
[Annotator "NA RC"]
[PlyCount "116"]
[EventDate "2023.11.30"]
[EventCountry "SRI"]
[SourceTitle "playchess.com"]
[Source "ChessBase"]
[SourceQuality "1"]
[TimeControl "5400+30"]

1. e4 {[%emt 0:04:47]} e5 {[%emt 0:00:40]} 2. Nf3 {[%emt 0:00:10]} Nc6 {[%emt 0:00:06]} 3. Bc4 {[%emt 0:00:05]} Bc5 {[%emt 0:00:06]} 4. c3 {[%emt 0:00:03]} Nf6 {[%emt 0:00:07]} 5. d3 {[%emt 0:00:03]} d6 {[%emt 0:00:14]} 6. O-O {[%emt 0:00:10]} O-O {[%emt 0:00:39]} 7. h3 {[%emt 0:02:40]} h6 {[%emt 0:00:30]} 8. Re1 {[%emt 0:00:20]} Bb6 {[%emt 0:00:46]} 9. Bb3 {[%emt 0:01:04]} Ne7 {[%emt 0:02:08]} 10. Nbd2 {[%emt 0:01:36]} c6 {[%emt 0:04:05]} 11. Nf1 {[%emt 0:02:22]} Ng6 {[%emt 1:26:39]} 12. g4 {[%emt 0:05:12]} Nh7 {[%emt 0:00:00]} 13. d4 {[%emt 0:19:20]} Qf6 {[%emt 0:00:00]} 14. Ng3 {[%emt 0:04:54]} Ng5 {[%emt 0:00:00]} 15. Nxg5 {[%emt 0:11:57]} hxg5 {[%emt 0:00:00]} 16. Nf5 {[%emt 0:00:05]} Nf4 {[%emt 0:00:00]} 17. Bxf4 {[%emt 0:44:12]} gxf4 {[%emt 0:00:00]} 18. dxe5 {[%emt 0:00:00]} dxe5 {[%emt 0:00:00]} 19. Qd6 {[%emt 0:00:00]} Bxf5 {[%emt 0:00:00]} 20. Qxf6 {[%emt 0:00:00]} gxf6 {[%emt 0:00:00]} 21. exf5 {[%emt 0:00:00]} Rad8 {[%emt 0:00:00]} 22. Rad1 {[%emt 0:00:00]} Rxd1 {[%emt 0:00:00]} 23. Rxd1 {[%emt 0:00:00]} Rd8 {[%emt 0:00:00]} 24. Rxd8+ {[%emt 0:00:00]} Bxd8 {[%emt 0:00:00]} 25. f3 {[%emt 0:00:00]} Bb6+ {[%emt 0:00:00]} 26. Kf1 {[%emt 0:00:00]} Be3 {[%emt 0:00:00]} 27. Bc2 {[%emt 0:00:00]} Bc1 {[%emt 0:00:00]} 28. b3 {[%emt 0:00:00]} Bb2 {[%emt 0:00:00]} 29. c4 {[%emt 0:00:00]} Kg7 {[%emt 0:00:00]} 30. Ke2 {[%emt 0:00:00]} Bd4 {[%emt 0:00:00]} 31. Be4 {[%emt 0:00:00]} Bc5 {[%emt 0:00:00]} 32. h4 {[%emt 0:00:00]} Kh6 {[%emt 0:00:00]} 33. Kd3 {[%emt 0:00:00]} a5 {[%emt 0:00:00]} 34. Kc2 {[%emt 0:00:00]} Bf2 {[%emt 0:00:00]} 35. h5 {[%emt 0:00:00]} Bd4 {[%emt 0:00:00]} 36. Bd3 {[%emt 0:00:00]} Bc5 {[%emt 0:00:00]} 37. Kb2 {[%emt 0:00:00]} Kg5 {[%emt 0:00:00]} 38. Be4 {[%emt 0:00:00]} Kh6 {[%emt 0:00:00]} 39. a3 {[%emt 0:00:00]} Bd4+ {[%emt 0:00:00]} 40. Ka2 {[%emt 0:00:00]} Bc5 {[%emt 0:00:00]} 41. b4 {[%emt 0:00:00]} axb4 {[%emt 0:00:00]} 42. a4 {[%emt 0:00:00]} Bb6 {[%emt 0:00:00]} 43. Kb3 {[%emt 0:00:00]} Ba5 {[%emt 0:00:00]} 44. c5 {[%emt 0:00:00]} Kg5 {[%emt 0:00:00]} 45. Bc2 {[%emt 0:00:00]} Kh6 {[%emt 0:00:00]} 46. Bd3 {[%emt 0:00:00]} Kh7 {[%emt 0:00:00]} 47. Kc4 {[%emt 0:00:00]} Kg7 {[%emt 0:00:00]} 48. Bc2 {[%emt 0:00:00]} b3 {[%emt 0:00:00]} 49. Kxb3 {[%emt 0:00:00]} Be1 {[%emt 0:01:51]} 50. Bd3 {[%emt 0:00:00]} Bf2 {[%emt 0:00:12]} 51. Kc4 {[%emt 0:00:00]} Be1 {[%emt 0:00:05]} 52. Bc2 {[%emt 0:00:00]} Bd2 {[%emt 0:00:13]} 53. Bb3 {[%emt 0:00:00]} Be1 {[%emt 0:00:06]} 54. Ba2 {[%emt 0:01:59]} Bd2 {[%emt 0:00:21]} 55. Bb1 {[%emt 0:01:09]} Be1 {[%emt 0:00:35]} 56. Bd3 {[%emt 0:00:33]} Bd2 {[%emt 0:00:43]} 57. Kb3 {[%emt 0:00:19]} Be3 {[%emt 0:00:06]} 58. Kb4 {[%emt 0:00:13]} Bd2+ {[%emt 0:00:05]} 1/2-1/2